bitfinex/quotes_ETHUSD_20220111
["timestamp","ask_amount","ask_price","bid_price","bid_amount"]
[1641898971882,1.58215831,3100.3,3099.5,1.44457164]
[1641898972081,0.00341054,3100.2,3099.5,1.92838834]
[1641898972476,0.00284212,3100.1,3099.5,1.92838834]
[1641898972876,0.00227369,3100.0,3099.5,1.92838834]
[1641898973278,0.00284212,3100.1,3099.5,1.92838834]
[1641898973726,0.00227369,3100.0,3099.5,0.3]
[1641898974227,0.00227369,3100.0,3099.3,0.78556407]
[1641898974625,1.57817934,3099.9,3099.4,0.00113685]
[1641898974826,1.57817934,3099.9,3099.5,0.4838183]
[1641898975024,0.00113685,3099.8,3099.5,0.7838183]
[1641898975826,0.00113685,3099.8,3099.5,0.3]
[1641898976025,0.00113685,3099.8,3099.4,0.30113685]
[1641898976629,3.44722099,3099.8,3099.4,0.30113685]
[1641898977029,3.44722099,3099.8,3099.4,0.00113685]
[1641898977478,5.02540033,3099.8,3099.1,0.00284212]
[1641898978175,1.57817934,3099.6,3099.1,0.00284212]
[1641898979076,3.13763559,3099.8,3099.1,0.00284212]
[1641898979276,3.14470433,3099.8,3099.1,0.00284212]
[1641898979476,1.57931619,3099.8,3099.1,0.00284212]
[1641898980276,0.00113685,3099.8,3099.1,0.00284212]
[1641898980476,3.11305751,3099.8,3099.1,0.00284212]
[1641898980677,3.11305751,3099.8,3099.0,0.00341054]
[1641898980876,4.69123685,3099.8,3099.0,0.00341054]
[1641898981324,4.69123685,3099.8,3098.9,0.3]
[1641898981525,4.69123685,3099.8,3099.1,0.00284212]
[1641898981725,4.69123685,3099.8,3099.0,0.00341054]
[1641898982233,4.69123685,3099.8,3098.8,0.00454739]
[1641898983328,1.57931619,3099.8,3099.1,1.24061512]
[1641898983529,1.57931619,3099.8,3099.1,1.54061512]
[1641898983732,1.57931619,3099.8,3099.2,0.00227369]
[1641898984333,1.57931619,3099.8,3099.2,0.95407369]
[1641898984528,1.57931619,3099.8,3099.2,1.5518]
[1641898984732,1.57931619,3099.8,3099.3,0.00170527]
[1641898984997,0.00113685,3099.8,3099.5,0.3]
[1641898985193,0.00113685,3099.8,3099.5,1.10629]
[1641898985593,0.00113685,3099.8,3099.4,0.783849]
[1641898985791,0.00113685,3099.8,3099.4,0.483849]
[1641898985993,0.00113685,3099.8,3099.3,0.00170527]
[1641898986393,0.00113685,3099.8,3099.1,0.00284212]
[1641898986992,0.00113685,3099.8,3099.1,0.30284212]
[1641898987393,0.00113685,3099.8,3099.2,0.00227369]
[1641898987596,2.37475237,3100.2,3099.2,0.00227369]
[1641898987597,4.68871763,3099.9,3099.2,0.00227369]
[1641898987791,2.38617351,3099.9,3099.2,0.00341054]
[1641898987991,3.17280586,3099.8,3098.9,0.00511581]
[1641898988291,2.38617351,3099.9,3098.9,0.00511581]
[1641898988292,1.54431619,3099.9,3098.9,0.00511581]
[1641898988492,1.54431619,3099.9,3099.0,0.4838718]
[1641898988930,1.54431619,3099.9,3099.1,0.30397897]
[1641898989330,4.26802751,3100.0,3099.2,0.00341054]
[1641898989534,23.15802751,3100.0,3099.2,0.00341054]
[1641898989732,4.26802751,3100.0,3099.2,0.00341054]
[1641898989932,4.26802751,3100.0,3099.0,0.00454739]
[1641898990141,2.74098321,3099.9,3098.6,0.00682108]
[1641898990331,3.45139009,3099.8,3098.6,0.00682108]
[1641898990533,3.45139009,3099.8,3098.6,1.31116463]
[1641898990939,3.45139009,3099.8,3098.7,0.00625266]
[1641898991137,3.75139009,3099.8,3098.7,0.00625266]
[1641898991540,2.74098321,3099.7,3098.7,0.30625266]
[1641898991935,2.74098321,3099.7,3098.8,0.00568424]
[1641898994186,3.11412653,3099.6,3098.8,0.00568424]
[1641898994388,3.16519501,3099.6,3098.8,0.00568424]
[1641898994690,3.16519501,3099.6,3098.6,0.00682108]
[1641898994691,18.89,3099.4,3098.6,0.00682108]
[1641898994887,3.13730594,3099.3,3098.6,0.00682108]
[1641898995087,19.353,3099.4,3098.0,7.9855]
[1641898995088,19.353,3099.4,3098.1,0.0096632]
[1641898995292,0.6866755,3098.9,3098.1,0.0096632]
[1641898996325,0.80686,3099.0,3098.1,0.0096632]
[1641898996727,1.26986,3099.0,3098.1,0.0096632]
[1641898996930,2.74098321,3098.8,3098.1,0.0096632]
[1641898997130,3.28396405,3098.7,3097.8,0.01136847]
[1641898997330,3.16200481,3098.7,3097.8,0.01136847]
[1641898997529,2.74098321,3098.8,3097.8,0.01136847]
[1641898997730,0.84425704,3098.6,3097.8,0.01136847]
[1641898998931,2.74098321,3098.5,3097.8,0.01136847]
[1641898999733,2.74098321,3098.5,3097.8,0.49543527]
[1641898999981,2.74098321,3098.5,3097.9,0.3]
[1641899000180,0.66027921,3098.7,3097.9,0.31080005]
[1641899000381,0.66027921,3098.7,3098.0,0.01023162]
[1641899000881,2.74098321,3098.6,3098.0,0.01023162]
[1641899001682,2.74098321,3098.6,3097.8,0.01136847]
[1641899003638,0.66027921,3098.7,3097.9,0.01526691]
[1641899003825,1.46717921,3098.7,3097.9,0.01526691]
[1641899004025,1.46717921,3098.7,3098.0,0.01023162]
[1641899004426,1.46717921,3098.7,3097.8,0.01136847]
[1641899005228,0.66027921,3098.7,3097.8,0.01136847]
[1641899006431,4.47372546,3099.0,3097.8,0.01136847]
[1641899006631,0.80681,3099.0,3097.8,0.01136847]
[1641899006830,0.80681,3099.0,3097.9,0.01270892]
[1641899007234,0.80681,3099.0,3098.0,0.01023162]
[1641899007679,0.86339576,3098.8,3097.8,0.01136847]
[1641899008279,3.18163864,3098.7,3097.8,0.01136847]
[1641899008484,4.04457611,3098.7,3097.8,0.01136847]
[1641899008880,4.34457611,3098.7,3097.8,0.01136847]
[1641899009682,0.8471663,3098.3,3097.8,0.01136847]
[1641899010080,4.34457611,3098.7,3097.8,0.01136847]
[1641899010280,1.10689,3098.7,3097.8,0.01136847]
[1641899010880,0.80689,3098.7,3097.8,1.16603332]
[1641899011151,0.80689,3098.7,3097.8,1.17740179]
[1641899011331,0.76182189,3098.8,3097.9,0.01080005]
[1641899012633,5.43635,3099.1,3098.0,0.03641761]
[1641899012634,24.32635,3099.1,3098.0,0.03641761]
[1641899012835,24.62635,3099.1,3097.9,0.01080005]
[1641899013034,24.32635,3099.1,3098.1,0.0096632]
[1641899013236,3.15536788,3099.0,3097.9,0.01080005]
[1641899013641,0.80683,3099.0,3097.9,0.01080005]
[1641899014235,3.8226,3099.1,3097.9,0.81755005]
[1641899014436,3.8226,3099.1,3098.4,0.00500841]
[1641899014880,3.8226,3099.1,3098.5,0.00738951]
[1641899015279,3.8226,3099.1,3098.4,0.00795793]
[1641899016184,3.8226,3099.1,3098.6,1.2905107]
[1641899016379,3.8226,3099.1,3098.7,0.3]
[1641899016580,3.8449,3099.6,3098.7,0.30625266]
[1641899016782,3.8449,3099.6,3098.8,0.00568424]
[1641899018093,0.8644123,3099.5,3098.8,0.00568424]
[1641899018282,6.7354372,3099.5,3098.8,0.00568424]
[1641899018482,0.01261174,3099.4,3098.8,0.00568424]
[1641899018743,0.01258975,3098.9,3097.3,3.3007]
[1641899018940,0.8071,3098.2,3097.2,0.49592537]
[1641899019139,1.12791588,3098.1,3097.9,0.00341054]
[1641899019337,2.18971588,3098.1,3097.9,0.00341054]
[1641899019535,2.18971588,3098.1,3097.0,0.00852635]
[1641899019736,1.3618,3098.1,3097.0,0.00852635]
[1641899019937,0.80709,3097.9,3097.0,0.00852635]
[1641899020339,3.04097378,3098.1,3097.0,0.00852635]
[1641899020737,3.04097378,3098.1,3097.0,0.91335568]
[1641899021141,2.74097378,3098.1,3097.4,1.4028123]
[1641899021346,2.74097378,3097.8,3097.4,1.4028123]
[1641899021540,2.74097378,3097.8,3097.5,0.00568423]
[1641899022138,2.73816333,3098.4,3097.5,0.00568423]
[1641899022139,2.74097378,3098.3,3097.5,4.12472207]
[1641899022379,2.74097378,3098.3,3097.5,0.00568423]
[1641899022578,2.74097378,3098.3,3097.7,0.3]
[1641899022779,2.74097378,3098.3,3097.5,3.25917636]
[1641899022978,2.74097378,3098.3,3097.9,1.46187676]
[1641899023182,2.74097378,3098.3,3097.9,1.76187676]
[1641899023380,2.74097378,3098.3,3098.0,0.00284211]
[1641899024480,2.74097378,3098.4,3098.0,0.00284211]
[1641899024878,2.74097378,3098.4,3098.0,0.80957211]
[1641899025078,2.74097378,3098.4,3098.1,0.3]
[1641899025280,0.13819997,3098.5,3098.1,0.30227369]
[1641899025481,0.13819997,3098.5,3098.4,1.2489918]
[1641899025684,0.00454739,3099.3,3098.4,1.2489918]
[1641899025884,4.11613108,3099.3,3098.6,0.80655]
[1641899026142,0.00397897,3099.2,3098.6,0.3]
[1641899026331,0.00397897,3099.2,3098.4,4.29513976]
[1641899026533,0.00341054,3099.1,3098.5,3.27168158]
[1641899026729,0.00341054,3099.1,3098.4,4.29513976]
[1641899026930,2.74101996,3099.2,3098.9,4.47812977]
[1641899026931,0.00284212,3099.0,3098.9,4.47812977]
[1641899027230,0.00284212,3099.0,3098.9,1.77812977]
[1641899029882,0.00284212,3099.0,3098.8,0.80651]
[1641899030287,0.0022737,3098.9,3098.7,1.61305]
[1641899030684,0.00170527,3098.8,3098.7,1.61305]
[1641899030885,0.00170527,3098.8,3098.4,1.61329]
[1641899031184,2.74101996,3099.3,3098.4,1.61329]
[1641899031185,0.00113685,3098.7,3098.6,0.80663]
[1641899032186,0.00113685,3098.7,3098.5,0.3]
[1641899032988,0.00113685,3098.7,3098.4,1.61329]
[1641899033187,0.00113685,3098.7,3098.5,0.3]
[1641899035029,0.00113685,3098.7,3098.4,1.61329]
[1641899035629,0.00113685,3098.7,3098.3,2.74362734]
[1641899035828,0.00113685,3098.7,3098.3,1.51492734]
[1641899036033,0.00113685,3098.7,3098.3,2.14186342]
[1641899036233,0.00113685,3098.7,3098.4,0.80668]
[1641899038079,0.00113685,3098.7,3098.5,0.3]
[1641899038481,0.00113685,3098.7,3098.4,0.80668]
[1641899039684,0.02590524,3098.6,3098.2,0.00170527]
[1641899039886,0.00113685,3098.7,3098.2,0.30170527]
[1641899040083,0.00113685,3098.7,3098.0,0.00284211]
[1641899040283,0.00113685,3098.7,3098.3,0.00113684]
[1641899040284,0.89531512,3098.5,3098.3,0.00113684]
[1641899040483,0.00113685,3098.7,3098.0,0.00284211]
[1641899040684,0.00113685,3098.7,3097.7,0.00454738]
[1641899041328,0.80804685,3098.7,3097.7,0.00454738]
[1641899041729,1.4996903,3098.7,3097.7,0.00454738]
[1641899041932,4.2052809,3098.7,3097.7,0.00454738]
[1641899042136,1.4996903,3098.7,3097.7,0.00454738]
[1641899042328,2.74150894,3098.6,3097.7,0.00454738]
[1641899045381,3.04150894,3098.6,3097.7,0.00454738]
[1641899045586,0.80699,3098.4,3097.7,0.00454738]
[1641899045782,3.13730594,3098.3,3097.7,0.00454738]
[1641899045987,3.13730594,3098.3,3096.4,7.35735]
[1641899045988,0.73191503,3097.4,3096.4,7.35735]
[1641899046182,0.73191503,3097.4,3097.0,0.00397897]
[1641899046183,0.02391627,3097.3,3097.0,0.00397897]
[1641899046382,0.01935467,3097.3,3097.0,0.00397897]
[1641899046584,0.82663467,3097.3,3096.4,0.00738951]
[1641899046783,0.21,3097.5,3096.4,2.31108615]
[1641899046984,1.91455,3097.6,3096.4,2.31108615]
[1641899047289,1.91455,3097.6,3096.5,0.00682109]
[1641899047682,2.73073226,3097.6,3096.5,0.00682109]
[1641899047885,0.80724,3097.5,3096.5,0.00682109]
[1641899048082,6.71416496,3097.5,3096.5,0.00682109]
[1641899048283,5.90692496,3097.5,3096.5,0.00682109]
[1641899048636,2.74150894,3097.5,3096.9,1.43967278]
[1641899049030,2.74150894,3097.4,3096.9,1.43967278]
[1641899049936,2.74150894,3097.6,3096.9,1.05707]
[1641899050134,2.74150894,3097.6,3096.9,0.75707]
[1641899050535,2.74150894,3097.3,3096.9,0.75707]
[1641899050731,2.74150894,3097.3,3096.7,1.61411]
[1641899051133,2.74150894,3097.3,3096.8,0.00511582]
[1641899051932,2.74150894,3097.6,3096.8,0.00511582]
[1641899052373,3.8863,3097.7,3096.9,0.80708]
[1641899052774,3.13730594,3097.6,3096.9,0.80708]
[1641899052975,0.3,3097.6,3096.8,0.00511582]
[1641899053175,2.74210137,3097.6,3096.8,0.00511582]
[1641899053976,6.85572384,3097.6,3096.8,0.00511582]
[1641899054977,3.15623512,3097.5,3096.8,0.00511582]
[1641899055181,6.85572384,3097.6,3096.8,0.00511582]
[1641899055376,10.07608923,3097.6,3096.8,0.00511582]
[1641899055580,2.74210137,3097.4,3096.8,0.00511582]
[1641899056230,6.85572384,3097.6,3096.8,0.00511582]
[1641899056432,10.01559636,3097.6,3096.8,0.00511582]
[1641899056832,10.01559636,3097.6,3096.5,0.49112789]
[1641899057230,10.01559636,3097.6,3096.6,0.00625266]
[1641899057431,2.74210137,3097.5,3096.6,0.00625266]
[1641899058532,3.15164664,3097.4,3096.6,0.00625266]
[1641899059134,4.11362247,3097.6,3096.6,0.00625266]
[1641899059135,2.74210137,3097.3,3096.6,0.00625266]
[1641899059333,2.74210137,3097.3,3096.7,0.80715]
[1641899059734,2.74210137,3097.5,3096.8,0.00511582]
[1641899060388,9.99935277,3097.6,3096.8,0.00511582]
[1641899060587,10.29935277,3097.6,3096.8,0.00511582]
[1641899060986,2.74210137,3097.5,3096.8,0.00511582]
[1641899062785,0.01233844,3097.4,3096.8,0.00511582]
[1641899063184,0.01233844,3097.4,3096.5,0.00682109]
[1641899063646,2.75443981,3097.4,3096.5,0.00682109]
[1641899063839,18.89,3097.3,3096.5,0.00682109]
[1641899064037,2.75443981,3097.4,3096.4,0.80723]
[1641899064238,2.74210137,3097.3,3096.4,0.81461951]
[1641899064439,2.74210137,3097.3,3096.5,0.00682109]
[1641899064639,2.74210137,3097.3,3096.5,1.62104109]
[1641899065042,2.74210137,3097.3,3096.8,0.80712]
[1641899065441,2.74210137,3097.5,3096.9,0.00454739]
[1641899066246,2.74210137,3097.5,3096.8,0.80709]
[1641899066640,2.74210137,3097.5,3096.9,0.00454739]
[1641899066841,2.74210137,3097.6,3096.9,0.00454739]
[1641899067242,2.74210137,3097.6,3097.3,1.37832591]
[1641899067488,2.74210137,3097.6,3097.3,1.67832591]
[1641899067681,2.74210137,3097.6,3097.4,0.70621632]
[1641899068081,2.74210137,3097.6,3097.5,0.00113685]
[1641899068682,2.74210137,3097.6,3097.4,0.00170528]
[1641899069084,2.74210137,3097.6,3097.4,0.48586828]
[1641899069285,2.74210137,3097.8,3097.4,0.48586828]
[1641899069483,2.74210137,3097.8,3097.5,0.00113685]
[1641899069685,0.00227369,3098.1,3097.5,0.00113685]
[1641899070086,0.00170527,3098.0,3097.5,0.00113685]
[1641899070285,0.00170527,3098.0,3097.4,0.00170528]
[1641899070484,0.00113684,3097.9,3097.4,0.00170528]
[1641899070685,0.00113684,3097.9,3097.3,0.0022737]
[1641899070889,18.89,3098.1,3097.3,0.0022737]
[1641899071144,22.05032482,3098.0,3097.2,0.00284212]
[1641899071331,22.05203009,3098.0,3097.2,0.00284212]
[1641899071533,0.00113684,3097.9,3097.2,0.00284212]
[1641899071734,18.89,3097.8,3097.2,0.00284212]
[1641899071933,3.35710592,3097.7,3097.2,0.00284212]
[1641899072132,22.24710592,3097.7,3096.9,0.00454739]
[1641899072335,22.24710592,3097.7,3096.8,0.00511582]
[1641899072533,29.10283421,3097.7,3096.8,0.00511582]
[1641899073737,6.85572829,3097.6,3096.8,0.00511582]
[1641899073938,18.89,3097.5,3096.8,0.00511582]
[1641899074339,7.63580715,3097.6,3096.8,0.00511582]
[1641899074637,21.63210582,3097.4,3096.8,0.00511582]
[1641899074878,2.74210582,3097.4,3096.8,0.00511582]
[1641899075079,2.74210582,3097.4,3096.5,0.00682109]
[1641899075481,18.89,3097.2,3096.5,0.00682109]
[1641899075679,3.16812372,3097.1,3096.5,0.00682109]
[1641899075879,3.16812372,3097.1,3096.4,0.00738951]
[1641899076282,22.05812372,3097.1,3096.3,0.00795793]
[1641899076885,3.54946582,3097.0,3096.3,0.00795793]
[1641899077081,3.29980849,3096.9,3096.3,0.00795793]
[1641899077284,3.59980849,3096.9,3096.3,0.00795793]
[1641899077481,3.59980849,3096.9,3096.1,0.00909478]
[1641899078282,2.74210582,3096.8,3096.1,0.00909478]
[1641899078484,3.12998085,3096.7,3096.1,0.00909478]
[1641899079132,2.74210582,3096.6,3096.1,0.00909478]
[1641899080231,3.6120449,3096.5,3096.1,0.00909478]
[1641899080629,1.0,3096.4,3096.1,0.00909478]
[1641899080830,0.463,3096.3,3096.1,0.00909478]
[1641899081036,4.56811252,3096.2,3096.1,0.00909478]
[1641899081240,5.03111252,3096.2,3096.1,0.00909478]
[1641899081730,0.763,3096.2,3096.1,0.00909478]
[1641899082129,0.463,3096.2,3096.1,0.00909478]
[1641899082386,19.353,3096.2,3096.1,0.00909478]
[1641899082587,0.01905139,3096.1,3094.7,6.09]
[1641899082786,19.353,3096.0,3094.7,6.09]
[1641899082986,18.89,3095.8,3094.8,0.00738951]
[1641899083185,4.17469415,3095.7,3094.8,0.00738951]
[1641899083393,0.01213927,3095.4,3094.8,0.00738951]
[1641899083586,0.47513927,3095.4,3094.8,0.00738951]
[1641899083986,0.463,3095.4,3094.4,0.0096632]
[1641899084593,0.13819997,3095.7,3094.6,0.4845912]
[1641899084785,0.13819997,3095.7,3094.5,2.584228]
[1641899084986,0.13819997,3095.7,3094.7,0.00795793]
[1641899085185,0.13819997,3095.7,3094.6,6.09852635]
[1641899085587,0.13819997,3095.7,3094.7,0.00795793]
[1641899085886,0.13819997,3095.7,3094.8,1.30449269]
[1641899086167,0.13819997,3095.7,3094.9,0.00682108]
[1641899095433,2.74400457,3095.6,3094.9,0.00682108]
[1641899095634,0.03816158,3095.5,3094.9,0.00682108]
[1641899096037,2.74400457,3095.6,3094.9,0.00682108]
[1641899096634,0.13819997,3095.7,3094.9,0.00682108]
[1641899097137,2.74403331,3095.5,3094.9,0.00682108]
[1641899097386,0.3,3095.4,3094.9,0.00682108]
[1641899097586,2.74403331,3095.6,3094.9,0.00682108]
[1641899097787,3.85177331,3095.6,3094.3,0.01023162]
[1641899097988,2.74403331,3095.6,3094.5,0.80767]
[1641899098185,0.60119997,3095.7,3094.5,0.80767]
[1641899098391,0.60119997,3095.7,3094.6,1.29669442]
[1641899098686,0.80776,3095.4,3094.7,0.00795793]
[1641899099887,1.40889997,3095.7,3094.7,0.00795793]
[1641899100087,20.49119997,3095.7,3094.7,0.00795793]
[1641899100287,2.74420926,3095.3,3094.7,0.00795793]
[1641899100687,0.3,3095.3,3094.7,0.00795793]
[1641899101131,21.93420926,3095.6,3094.7,0.00795793]
[1641899101430,0.60119997,3095.7,3094.7,0.00795793]
[1641899101431,0.13819997,3095.7,3094.7,0.00795793]
[1641899101637,1.25886,3095.9,3094.7,0.07904108]
[1641899101638,1.1781,3095.9,3094.7,0.07904108]
[1641899101933,3.9604,3096.1,3095.1,0.4844646]
[1641899102330,3.9604,3096.1,3095.2,0.00511581]
[1641899102532,3.9604,3096.1,3095.2,0.68422173]
[1641899102830,7.543,3096.2,3095.3,0.00454739]
[1641899103233,3.7771,3096.2,3095.6,1.14978122]
[1641899103432,2.74388441,3096.0,3095.6,1.63419032]
[1641899103732,2.74388441,3096.0,3095.7,0.00227369]
[1641899104138,0.00113685,3096.3,3095.7,0.00227369]
[1641899104334,0.00113685,3096.3,3095.9,0.84896192]
[1641899104733,0.00113685,3096.3,3095.7,0.00227369]
[1641899105189,0.00113685,3096.3,3095.7,0.80957369]
[1641899105582,0.00113685,3096.3,3096.0,0.80726]
[1641899106583,0.00113685,3096.3,3096.0,1.61452]
[1641899106982,0.00113685,3096.3,3096.0,0.80726]
[1641899107189,0.00113685,3096.3,3096.0,0.80725]
[1641899107687,0.00113685,3096.3,3096.1,0.80723]
[1641899109137,2.74388441,3097.0,3096.9,1.13200056]
[1641899109340,5.28546333,3097.2,3096.8,0.80711]
[1641899109341,1.57756333,3097.2,3096.8,0.80711]
[1641899109640,0.00341054,3096.9,3096.6,0.8071]
[1641899110035,0.00284211,3096.8,3096.6,0.8071]
[1641899110436,0.00227369,3096.7,3096.6,0.8071]
[1641899110737,0.00511581,3096.7,3096.6,2.26023317]
[1641899111138,0.00511581,3096.7,3096.6,1.45313317]
[1641899111344,0.00511581,3096.7,3096.4,1.61421]
[1641899111538,0.00511581,3096.7,3096.2,3.1447]
[1641899111737,0.00170527,3096.6,3096.2,3.1447]
[1641899111940,0.00170527,3096.6,3096.4,0.80718]
[1641899112139,0.00113684,3096.5,3096.4,0.80718]
[1641899112385,0.00113684,3096.5,3096.4,9.22354472]
[1641899112578,0.00568423,3096.5,3096.4,9.22354472]
[1641899112979,0.00568423,3096.5,3096.4,10.83764472]
[1641899113583,0.00568423,3096.5,3096.4,11.13764472]
[1641899113882,0.00568423,3096.5,3096.4,11.37172787]
[1641899114487,0.00568423,3096.5,3096.4,14.56647331]
[1641899114681,8.423e-05,3096.5,3096.4,12.37172787]
[1641899114884,1.57756333,3097.5,3097.0,0.01651888]
[1641899115083,1.57756333,3097.5,3097.2,0.4840713]
[1641899115282,1.57756333,3097.5,3097.3,1.19974027]
[1641899115484,3.15352868,3097.9,3097.4,0.463]
[1641899115883,0.00170527,3097.6,3097.4,0.463]
[1641899116133,3.15352868,3097.9,3097.6,7.8339739]
[1641899116134,1.06762868,3097.9,3097.6,7.8339739]
[1641899116333,4.11585577,3098.3,3097.6,8.1394739]
[1641899116531,3.6689,3099.0,3097.8,1.61315]
[1641899116732,3.6689,3099.0,3098.6,1.43978149]
[1641899117236,3.6668,3099.4,3098.6,1.43978149]
[1641899117431,3.6668,3099.4,3098.6,2.26369962]
[1641899117636,0.00909478,3099.2,3098.4,0.80664]
[1641899118035,0.01209979,3098.8,3097.3,2.4662]
[1641899118231,1.01209979,3098.8,3097.4,3.1869]
[1641899118432,1.01209979,3098.8,3097.4,0.00113685]
[1641899118433,2.72800722,3098.7,3097.4,0.00113685]
[1641899118632,1.00176571,3098.5,3097.4,0.00113685]
[1641899118834,1.00176571,3098.5,3097.2,0.00227369]
[1641899118835,0.463,3098.4,3097.2,0.00227369]
[1641899119031,0.46754739,3098.4,3097.2,0.00227369]
[1641899119233,0.01278795,3098.0,3097.2,0.00227369]
[1641899119532,0.00170527,3097.9,3096.5,4.29977866]
[1641899119736,0.00170527,3097.9,3097.1,0.80703]
[1641899119986,0.00113685,3097.8,3097.1,0.80703]
[1641899120186,0.00113685,3097.8,3097.2,0.00227369]
[1641899120481,0.3,3098.1,3097.1,0.78576669]
[1641899120681,0.3,3098.1,3097.1,0.80707]
[1641899120880,0.0022737,3098.0,3097.2,0.00227369]
[1641899121280,0.3,3098.1,3097.1,0.00284212]
[1641899121281,0.00170527,3097.9,3097.1,0.00284212]
[1641899121782,0.00113685,3097.8,3097.1,0.80991212]
[1641899122284,0.00284212,3098.1,3097.3,0.85968184]
[1641899122680,1.3,3098.2,3097.4,0.00113685]
[1641899122681,0.0022737,3098.0,3097.4,0.00113685]
[1641899123080,0.00170527,3097.9,3097.4,0.00113685]
[1641899123481,0.00113685,3097.8,3097.4,0.00113685]
[1641899123933,0.00284212,3098.1,3097.4,0.00113685]
[1641899124336,0.0022737,3098.0,3097.4,0.00113685]
[1641899124840,0.00170527,3097.9,3097.4,0.00113685]
[1641899125234,0.00113685,3097.8,3097.4,0.00113685]
[1641899125637,2.7458245,3098.2,3097.7,0.80688]
[1641899126035,0.00284212,3098.1,3097.7,0.80688]
[1641899126236,0.00284212,3098.1,3098.0,1.1057658]
[1641899126541,3.8886085,3098.5,3098.0,2.4510658]
[1641899126735,1.55557419,3098.5,3098.0,2.1510658]
[1641899126934,0.00341054,3098.2,3098.0,2.4510658]
[1641899127235,0.00284212,3098.1,3098.0,2.4510658]
[1641899127681,0.00284212,3098.1,3098.0,3.4190177]
[1641899127879,0.00284212,3098.1,3098.0,4.2256477]
[1641899129078,0.00284212,3098.1,3098.0,2.8803477]
[1641899130881,0.00284212,3098.1,3098.0,3.1803477]
[1641899131530,0.00284212,3098.1,3098.0,1.9123958]
[1641899132130,0.00284212,3098.1,3098.0,1.1057658]
[1641899133535,0.00284212,3098.1,3098.0,1.9125358]
[1641899143687,0.00284212,3098.1,3098.0,0.80677]
[1641899146834,0.00284212,3098.1,3098.0,5.70677]
[1641899147036,0.00284212,3098.1,3098.0,6.54124761]
[1641899147443,2.74181618,3098.6,3098.1,5.65]
[1641899147637,2.74181618,3098.6,3098.3,0.80661]
[1641899147835,2.7446583,3098.6,3098.4,1.55984463]
[1641899148834,0.00284212,3098.6,3098.4,1.55984463]
[1641899150701,0.00284212,3098.6,3098.5,0.80658]
[1641899151798,0.00284212,3098.6,3098.4,6.95702544]
[1641899152201,0.00227369,3098.5,3098.4,3.65671783]
[1641899152999,0.00227369,3098.5,3098.4,3.17282463]
[1641899154435,7.7995,3099.4,3099.1,1.49728631]
[1641899154636,3.9474,3099.4,3099.2,0.81581612]
[1641899154832,3.9474,3099.4,3099.2,0.80645]
[1641899156237,3.9474,3099.4,3099.1,1.49728631]
[1641899157882,3.9474,3099.4,3098.9,1.61289]
[1641899159587,0.01820855,3099.3,3098.7,1.613]
[1641899159783,0.01820855,3099.3,3098.7,2.076]
[1641899159985,0.00397897,3099.2,3098.5,6.715]
[1641899160286,0.00341054,3099.1,3098.5,3.215]
[1641899160684,0.00284212,3099.0,3098.5,3.215]
[1641899160883,0.00284212,3099.0,3098.4,1.1481]
[1641899161140,0.0022737,3098.9,3098.4,1.1481]
[1641899161536,0.00170527,3098.8,3098.6,0.8066]
[1641899161935,0.00113685,3098.7,3098.6,0.8066]
[1641899163438,0.00113685,3098.7,3098.4,1.9547]
[1641899163640,0.00113685,3098.7,3098.4,1.1481]
[1641899164438,0.00113685,3098.7,3098.3,5.33132]
[1641899164637,0.01338732,3098.7,3097.9,1.2316]
[1641899164906,0.99248732,3098.7,3097.6,0.07130205]
[1641899165103,0.99248732,3098.7,3098.0,0.00284211]
[1641899165104,3.6707,3098.6,3098.0,0.00284211]
[1641899165298,3.6707,3098.6,3097.7,0.00454738]
[1641899165498,0.80697,3098.4,3097.7,0.00454738]
[1641899166098,0.80697,3098.4,3097.4,0.00625266]
[1641899166305,0.80697,3098.4,3097.3,0.00682108]
[1641899166500,3.6707,3098.6,3097.3,0.00682108]
[1641899166900,2.74156617,3098.3,3097.5,0.85959156]
[1641899167101,2.74156617,3098.3,3097.4,1.61369]
[1641899167301,2.74156617,3098.3,3097.6,0.00511581]
[1641899167502,2.74156617,3098.5,3097.5,0.00568423]
[1641899169440,3.54853617,3098.5,3097.5,0.00568423]
[1641899169644,2.74156617,3098.5,3097.5,0.00568423]
[1641899170042,2.74156617,3098.5,3097.7,1.61358]
[1641899170243,2.74156617,3098.4,3097.7,1.61358]
[1641899170444,2.74156617,3098.4,3097.8,0.00397896]
[1641899170844,2.74156617,3098.4,3097.5,0.00568423]
[1641899171647,3.58332012,3098.4,3097.5,0.00568423]
[1641899171844,0.80703,3098.3,3097.5,0.00568423]
[1641899172787,2.74156617,3098.2,3097.5,0.00568423]
[1641899174490,0.80703,3098.3,3097.5,0.00568423]
[1641899175290,0.8071,3098.0,3097.2,0.0073895]
[1641899175692,1.1071,3098.0,3097.2,0.0073895]
[1641899175889,1.1071,3098.0,3097.0,0.00852635]
[1641899175890,0.68060033,3097.3,3097.0,0.00852635]
[1641899176146,0.68060033,3097.3,3096.8,0.0096632]
[1641899176147,0.8861,3097.3,3096.8,0.0096632]
[1641899176346,0.8861,3097.3,3096.2,0.01307374]
[1641899176347,1.69338,3097.3,3096.2,0.01307374]
[1641899176946,1.99338,3097.3,3096.2,0.01307374]
[1641899177751,3.2769762,3097.2,3096.2,0.01307374]
[1641899178748,6.1918,3097.4,3096.2,0.01307374]
[1641899178749,5.1918,3097.4,3096.2,0.01307374]
[1641899179048,5.1918,3097.4,3096.5,0.80719]
[1641899179449,5.1918,3097.4,3096.6,0.01080004]
[1641899180089,5.1918,3097.4,3096.5,0.01136847]
[1641899180292,5.1918,3097.4,3096.6,0.80713]
[1641899180689,5.1918,3097.4,3096.7,0.01023162]
[1641899180890,5.1918,3097.4,3096.8,2.28653975]
[1641899181091,3.9213,3097.8,3096.9,0.463]
[1641899181292,3.9213,3097.8,3097.1,0.80692]
[1641899181689,3.9213,3097.8,3097.5,0.8563193]
[1641899182192,3.9213,3097.8,3097.6,0.00511581]
[1641899182391,3.9213,3097.8,3097.6,0.81198581]
[1641899182591,7.704,3098.2,3097.6,0.81198581]
[1641899182792,3.9636,3098.2,3097.9,1.41579163]
[1641899183392,3.9636,3098.2,3097.8,0.4866]
[1641899183393,0.00113685,3098.7,3098.2,0.80672]
[1641899183640,0.00113685,3098.7,3097.9,0.80674]
[1641899183840,3.1430088,3098.7,3098.3,0.00113684]
[1641899184048,0.00113685,3098.7,3098.3,0.00113684]
[1641899185242,2.74329242,3098.7,3098.3,0.00113684]
[1641899185641,2.74329242,3098.7,3098.1,0.80678]
[1641899186047,2.74329242,3098.7,3098.2,0.00170527]
[1641899187047,2.74329242,3098.7,3098.1,0.80677]
[1641899187492,2.74329242,3098.7,3098.2,0.00170527]
[1641899188087,2.74329242,3098.7,3098.3,0.80671]
[1641899188288,2.74329242,3098.7,3098.3,1.61337]